fUSD/lending_fUSD_20250124
["ID","MTS","AMOUNT","RATE_DAILY","PERIOD"]
[350237238,1737725453049,-72607.42971255,0.000189,2]
[350237239,1737725453059,-494.61492411,0.000189,2]
[350237240,1737725453068,-2811.42,0.000189,2]
[350237241,1737725453077,-1900.0,0.000189,6]
[350237242,1737725453086,-344.77404117,0.000189,2]
[350237243,1737725453095,-161.30882823,0.000189,2]
[350237244,1737725453104,-300.0,0.00018904,2]
[350237245,1737725453112,-1529.7064786,0.00018907,2]
[350237246,1737725453121,-2721.0556972,0.00018907,2]
[350237247,1737725453130,-500.0,0.00018918,2]
[350237248,1737725453140,-1123.0,0.00018918,2]
[350237249,1737725453150,-290000.0,0.0001892,2]
[350237250,1737725453159,-151.0,0.0001892,2]
[350237251,1737725453168,-151.0,0.0001892,2]
[350237252,1737725453178,-151.0,0.0001892,2]
[350237253,1737725453187,-571.680638,0.0001892,2]
[350237254,1737725453196,-571.680638,0.0001892,2]
[350237255,1737725453206,-151.0,0.0001892,2]
[350237256,1737725453217,-200.713576,0.0001892,2]
[350237257,1737725453227,-151.0,0.0001892,2]
[350237258,1737725453236,-151.0,0.0001892,2]
[350237259,1737725453245,-151.0,0.0001892,2]
[350237260,1737725453255,-151.0,0.0001892,2]
[350237261,1737725453264,-151.0,0.0001892,2]
[350237262,1737725453275,-151.0,0.0001892,2]
[350237263,1737725453284,-160.502963,0.0001892,2]
[350237264,1737725453293,-157.774541,0.0001892,2]
[350237265,1737725453302,-157.774541,0.0001892,2]
[350237266,1737725453313,-151.0,0.0001892,2]
[350237267,1737725453322,-151.0,0.0001892,2]
[350237268,1737725453331,-324.632183,0.0001892,2]
[350237269,1737725453341,-151.0,0.0001892,2]
[350237270,1737725453350,-343.16761,0.0001892,2]
[350237271,1737725453359,-343.16761,0.0001892,2]
[350237272,1737725453368,-151.0,0.0001892,2]
[350237273,1737725453377,-151.0,0.0001892,2]
[350237274,1737725453386,-151.0,0.0001892,2]
[350237275,1737725453395,-268.763332,0.0001892,2]
[350237276,1737725453404,-407.811,0.0001892,2]
[350237277,1737725453415,-153.179467,0.0001892,2]
[350237278,1737725453424,-192.135821,0.0001892,2]
[350237279,1737725453433,-192.135821,0.0001892,2]
[350237280,1737725453442,-493.586486,0.0001892,2]
[350237281,1737725453451,-493.586486,0.0001892,2]
[350237282,1737725453460,-151.0,0.0001892,2]
[350237283,1737725453470,-151.0,0.0001892,2]
[350237284,1737725453480,-151.937463,0.0001892,2]
[350237285,1737725453489,-1244.06601,0.0001892,2]
[350237286,1737725453498,-350.477489,0.0001892,2]
[350237287,1737725453507,-1244.06601,0.0001892,2]
[350237288,1737725453516,-264.414933,0.0001892,2]
[350237289,1737725453526,-350.477489,0.0001892,2]
[350237290,1737725453535,-151.0,0.0001892,2]
[350237291,1737725453544,-151.751368,0.0001892,2]
[350237292,1737725453553,-168.131283,0.0001892,2]
[350237293,1737725453562,-168.131283,0.0001892,2]
[350237294,1737725453574,-151.0,0.0001892,2]
[350237295,1737725453584,-151.0,0.0001892,2]
[350237296,1737725453594,-1655.375407,0.0001892,2]
[350237297,1737725453603,-151.0,0.0001892,2]
[350237298,1737725453612,-931.660024,0.0001892,2]
[350237299,1737725453623,-151.0,0.0001892,2]
[350237300,1737725453632,-931.660024,0.0001892,2]
[350237301,1737725453641,-151.0,0.0001892,2]
[350237302,1737725453650,-229.678481,0.0001892,2]
[350237303,1737725453660,-210.24,0.0001892,2]
[350237304,1737725453670,-151.0,0.0001892,2]
[350237305,1737725453680,-229.678481,0.0001892,2]
[350237306,1737725453689,-210.24,0.0001892,2]
[350237307,1737725453698,-151.0,0.0001892,2]
[350237308,1737725453708,-151.0,0.0001892,2]
[350237309,1737725453718,-328.385685,0.0001892,2]
[350237310,1737725453729,-197.223548,0.0001892,2]
[350237311,1737725453738,-328.385685,0.0001892,2]
[350237312,1737725453748,-197.223548,0.0001892,2]
[350237313,1737725453758,-425.399491,0.0001892,2]
[350237314,1737725453767,-151.0,0.0001892,2]
[350237315,1737725453775,-151.0,0.0001892,2]
[350237316,1737725453784,-425.399491,0.0001892,2]
[350237317,1737725453794,-10000.0,0.0001892,2]
[350237318,1737725453803,-10000.0,0.0001892,2]
[350237319,1737725453812,-10000.0,0.0001892,2]
[350237320,1737725453822,-236.129118,0.0001892,2]
[350237321,1737725453832,-236.129118,0.0001892,2]
[350237322,1737725453843,-151.0,0.0001892,2]
[350237323,1737725453852,-357.512032,0.0001892,2]
[350237324,1737725453862,-357.512032,0.0001892,2]
[350237325,1737725453871,-151.0,0.0001892,2]
[350237326,1737725453880,-300.500202,0.0001892,2]
[350237327,1737725453889,-300.500202,0.0001892,2]
[350237328,1737725453898,-2680.918792,0.0001892,2]
[350237329,1737725453908,-2680.918792,0.0001892,2]
[350237330,1737725453918,-243.840219,0.0001892,2]
[350237331,1737725453928,-243.840219,0.0001892,2]
[350237332,1737725453938,-2770.4678851,0.00018941,2]
[350237333,1737725453947,-150.0,0.00018942,2]
[350237334,1737725453957,-500.0,0.00018945,2]
[350237335,1737725453967,-1123.0,0.00018945,2]
[350237336,1737725453977,-152.0,0.00018954,3]
[350237337,1737725453986,-152.86,0.00018968,2]
[350237338,1737725453996,-151.97452289,0.00018973,2]
[350237339,1737725454005,-500.0,0.00018973,2]
[350237340,1737725454017,-1123.0,0.00018973,2]
[350237341,1737725454026,-445.3657776,0.00018973,2]
[350237342,1737725454036,-150.0,0.00018979,2]
[350237343,1737725454047,-152.85,0.0001898,2]
[350237344,1737725454058,-249.87366587,0.00018985,2]
[350237345,1737725454069,-150.0,0.00018986,2]
[350237346,1737725454079,-23540.0,0.00018986,2]
[350237347,1737725454090,-500.0,0.00018986,2]
[350237348,1737725454099,-756.88000554,0.00018995,2]
[350237349,1737725454110,-797.60375871,0.00018995,2]
[350237350,1737725454120,-381.23413214,0.00019,3]
[350237351,1737725454130,-10000.0,0.00019,2]
[350237352,1737725454140,-1244.06601,0.00019,2]
[350237353,1737725454149,-350.477489,0.00019,2]
[350237354,1737725454159,-1244.06601,0.00019,2]
[350237355,1737725454168,-264.414933,0.00019,2]
[350237356,1737725454178,-350.477489,0.00019,2]
[350237357,1737725454187,-168.131283,0.00019,2]
[350237358,1737725454196,-168.131283,0.00019,2]
[350237359,1737725454205,-151.0,0.00019,2]
[350237360,1737725454214,-151.0,0.00019,2]
[350237361,1737725454223,-931.660024,0.00019,2]
[350237362,1737725454232,-151.0,0.00019,2]
[350237363,1737725454242,-931.660024,0.00019,2]
[350237364,1737725454253,-151.0,0.00019,2]
[350237365,1737725454262,-229.678481,0.00019,2]
[350237366,1737725454272,-210.24,0.00019,2]
[350237367,1737725454281,-151.0,0.00019,2]
[350237368,1737725454290,-229.678481,0.00019,2]
[350237369,1737725454299,-210.24,0.00019,2]
[350237370,1737725454308,-151.0,0.00019,2]
[350237371,1737725454319,-153.787063,0.00019,2]
[350237372,1737725454329,-328.385685,0.00019,2]
[350237373,1737725454339,-197.223548,0.00019,2]
[350237374,1737725454348,-328.385685,0.00019,2]
[350237375,1737725454358,-197.223548,0.00019,2]
[350237376,1737725454369,-425.399491,0.00019,2]
[350237377,1737725454379,-151.0,0.00019,2]
[350237378,1737725454389,-151.0,0.00019,2]
[350237379,1737725454398,-425.399491,0.00019,2]
[350237380,1737725454407,-10000.0,0.00019,2]
[350237381,1737725454416,-10000.0,0.00019,2]
[350237382,1737725454425,-10000.0,0.00019,2]
[350237383,1737725454435,-236.129118,0.00019,2]
[350237384,1737725454444,-236.129118,0.00019,2]
[350237385,1737725454453,-804.37042446,0.00019,2]
[350237386,1737725454462,-1123.0,0.00019,2]
[350237387,1737725454471,-151.0,0.00019001,2]
[350237388,1737725454481,-151.0,0.00019001,2]
[350237389,1737725454490,-1655.375407,0.00019001,2]
[350237390,1737725454499,-344.77404097,0.00019003,2]
[350237391,1737725454509,-500.0,0.00019014,2]
[350237392,1737725454518,-766.66,0.00019014,2]
[350237393,1737725454527,-545.87,0.00019014,2]
[350237394,1737725454535,-565.19,0.00019014,2]
[350237395,1737725454545,-500.0,0.00019014,2]
[350237396,1737725454554,-536.47,0.00019014,2]
[350237397,1737725454564,-500.0,0.00019014,2]
[350237398,1737725454574,-500.0,0.00019014,2]
[350237399,1737725454584,-500.0,0.00019014,2]
[350237400,1737725454593,-647.18,0.00019014,2]
[350237401,1737725454602,-742.68,0.00019014,2]
[350237402,1737725454611,-500.0,0.00019014,2]
[350237403,1737725454621,-820.24,0.00019014,2]
[350237404,1737725454630,-500.0,0.00019014,2]
[350237405,1737725454639,-911.986253,0.00019014,2]
[350237406,1737725454648,-500.0,0.00019014,2]
[350237407,1737725454658,-500.0,0.00019014,2]
[350237408,1737725454667,-1262.356468,0.00019014,2]
[350237409,1737725454676,-500.0,0.00019014,2]
[350237410,1737725454685,-500.0,0.00019014,2]
[350237411,1737725454695,-500.0,0.00019014,2]
[350237412,1737725454703,-880.3,0.00019014,2]
[350237413,1737725454830,-577.6,0.00019014,2]
[350237414,1737725454839,-857.73,0.00019014,2]
[350237415,1737725454848,-1025.13,0.00019014,2]
[350237416,1737725454856,-500.0,0.00019014,2]
[350237417,1737725454865,-500.0,0.00019014,2]
[350237418,1737725454875,-725.16,0.00019014,2]
[350237419,1737725454883,-500.0,0.00019014,2]
[350237420,1737725454893,-500.0,0.00019014,2]
[350237421,1737725454902,-500.0,0.00019014,2]
[350237422,1737725454911,-1184.48,0.00019014,2]
[350237423,1737725454920,-665.05,0.00019014,2]
[350237424,1737725454931,-500.0,0.00019014,2]
[350237425,1737725454941,-681.0,0.00019014,2]
[350237426,1737725454950,-500.0,0.00019014,2]
[350237427,1737725454959,-784.13,0.00019014,2]
[350237428,1737725454968,-838.83,0.00019014,2]
[350237429,1737725454979,-674.0,0.00019014,2]
[350237430,1737725454990,-633.27,0.00019014,2]
[350237431,1737725454999,-625.3,0.00019014,2]
[350237432,1737725455008,-710.81,0.00019014,2]
[350237433,1737725455019,-500.0,0.00019014,2]
[350237434,1737725455028,-500.0,0.00019014,2]
[350237435,1737725455037,-1318.82,0.00019014,2]
[350237436,1737725455046,-500.0,0.00019014,2]
[350237437,1737725455057,-592.87,0.00019014,2]
[350237438,1737725455067,-850.7,0.00019014,2]
[350237439,1737725455076,-500.0,0.00019014,2]
[350237440,1737725455085,-1619.61,0.00019014,2]
[350237441,1737725455095,-770.28,0.00019014,2]
[350237442,1737725455104,-500.0,0.00019014,2]
[350237443,1737725455113,-500.0,0.00019014,2]
[350237444,1737725455122,-1105.88,0.00019014,2]
[350237445,1737725455131,-2490.43,0.00019014,2]
[350237446,1737725455140,-500.0,0.00019014,2]
[350237447,1737725455150,-2527.44,0.00019014,2]
[350237448,1737725455159,-1221.43,0.00019014,2]
[350237449,1737725455168,-1517.5,0.00019014,2]
[350237450,1737725455180,-663.69,0.00019014,2]
[350237451,1737725455189,-1976.65,0.00019014,2]
[350237452,1737725455198,-683.17,0.00019014,2]
[350237453,1737725455207,-550.63,0.00019014,2]
[350237454,1737725455216,-752.72,0.00019014,2]
[350237455,1737725455225,-786.36,0.00019014,2]
[350237456,1737725455235,-865.57,0.00019014,2]
[350237457,1737725455244,-1143.26,0.00019014,2]
[350237458,1737725455253,-956.09,0.00019014,2]
[350237459,1737725455262,-500.0,0.00019014,2]
[350237460,1737725455272,-4831.08,0.00019014,2]
[350237461,1737725455282,-681.15,0.00019014,2]
[350237462,1737725455292,-500.0,0.00019014,2]
[350237463,1737725455302,-1185.35,0.00019014,2]
[350237464,1737725455312,-985.07,0.00019014,2]
[350237465,1737725455322,-2604.06,0.00019014,2]
[350237466,1737725455332,-2613.69,0.00019014,2]
[350237467,1737725455344,-500.0,0.00019014,2]
[350237468,1737725455354,-2125.86,0.00019014,2]
[350237469,1737725455363,-500.0,0.00019014,2]
[350237470,1737725455372,-605.94,0.00019014,2]
[350237471,1737725455381,-772.7,0.00019014,2]
[350237472,1737725455390,-2823.65,0.00019014,2]
[350237473,1737725455399,-1526.12,0.00019014,2]
[350237474,1737725455408,-507.32,0.00019014,2]
[350237475,1737725455417,-595.82,0.00019014,2]
[350237476,1737725455427,-500.0,0.00019014,2]
[350237477,1737725455436,-1206.86,0.00019014,2]
[350237478,1737725455445,-1313.93,0.00019014,2]
[350237479,1737725455455,-1977.6,0.00019014,2]
[350237480,1737725455464,-1322.57,0.00019014,2]
[350237481,1737725455474,-4584.99,0.00019014,2]
[350237482,1737725455483,-500.0,0.00019014,2]
[350237483,1737725455493,-4043.11,0.00019014,2]
[350237484,1737725455502,-1158.59,0.00019014,2]
[350237485,1737725455512,-930.11,0.00019014,2]
[350237486,1737725455521,-1705.72,0.00019014,2]
[350237487,1737725455530,-500.0,0.00019014,2]
[350237488,1737725455539,-1200.9,0.00019014,2]
[350237489,1737725455548,-2753.35,0.00019014,2]
[350237490,1737725455557,-2285.18,0.00019014,2]
[350237491,1737725455567,-500.0,0.00019014,2]
[350237492,1737725455576,-620.26,0.00019014,2]
[350237493,1737725455585,-753.91,0.00019014,2]
[350237494,1737725455594,-729.86,0.00019014,2]
[350237495,1737725455603,-3297.1,0.00019014,2]
[350237496,1737725455613,-1099.34,0.00019014,2]
[350237497,1737725455622,-579.63,0.00019014,2]
[350237498,1737725455630,-1373.96,0.00019014,2]
[350237499,1737725455640,-2755.94,0.00019014,2]
[350237500,1737725455651,-500.0,0.00019014,2]
[350237501,1737725455660,-813.1,0.00019014,2]
[350237502,1737725455670,-500.0,0.00019014,2]
[350237503,1737725455680,-1383.9,0.00019014,2]
[350237504,1737725455690,-654.23,0.00019014,2]
[350237505,1737725455698,-536.85,0.00019014,2]
[350237506,1737725455708,-1097.0,0.00019014,2]
[350237507,1737725455717,-1640.92,0.00019014,2]
[350237508,1737725455726,-560.11,0.00019014,2]
[350237509,1737725455736,-857.58,0.00019014,2]
[350237510,1737725455745,-500.0,0.00019014,2]
[350237511,1737725455754,-11329.67,0.00019014,2]
[350237512,1737725455763,-1010.68,0.00019014,2]
[350237513,1737725455773,-4414.0,0.00019014,2]
[350237514,1737725455782,-500.0,0.00019014,2]
[350237515,1737725455791,-1834.79,0.00019014,2]
[350237516,1737725455802,-500.0,0.00019014,2]
[350237517,1737725455811,-902.73,0.00019014,2]
[350237518,1737725455820,-500.0,0.00019014,2]
[350237519,1737725455829,-3592.66,0.00019014,2]
[350237520,1737725455838,-500.47,0.00019014,2]
[350237521,1737725455848,-1496.2,0.00019014,2]
[350237522,1737725455857,-739.18,0.00019014,2]
[350237523,1737725455866,-577.81,0.00019014,2]
[350237524,1737725455876,-1003.45,0.00019014,2]
[350237525,1737725455886,-500.0,0.00019014,2]
[350237526,1737725455895,-555.07,0.00019014,2]
[350237527,1737725455904,-2659.57,0.00019014,2]
[350237528,1737725455914,-500.0,0.00019014,2]
[350237529,1737725455924,-677.47,0.00019014,2]
[350237530,1737725455934,-555.1,0.00019014,2]
[350237531,1737725455943,-1466.13,0.00019014,2]
[350237532,1737725455953,-720.42,0.00019014,2]
[350237533,1737725455962,-2422.11,0.00019014,2]
[350237534,1737725455972,-500.0,0.00019014,2]
[350237535,1737725455985,-500.0,0.00019015,2]
[350237536,1737725455994,-500.0,0.00019015,2]
[350237537,1737725456003,-500.0,0.00019015,2]
[350237538,1737725456013,-500.0,0.00019015,2]
[350237539,1737725456024,-500.0,0.00019015,2]
[350237540,1737725456033,-500.0,0.00019015,2]
[350237541,1737725456043,-617.96,0.00019015,2]
[350237542,1737725456054,-500.0,0.00019015,2]
[350237543,1737725456063,-421.82656902,0.00019015,2]
[350237544,1737725456073,-500.0,0.00019015,2]
[350237545,1737725456082,-500.0,0.00019015,2]
[350237546,1737725456091,-541.06,0.00019015,2]
[350237547,1737725456101,-500.0,0.00019015,2]
[350237548,1737725456110,-500.0,0.00019015,2]
[350237549,1737725456119,-500.0,0.00019015,2]
[350237550,1737725456128,-500.0,0.00019015,2]
[350237551,1737725456138,-500.0,0.00019015,2]
[350237552,1737725456147,-500.0,0.00019015,2]
[350237553,1737725456156,-500.0,0.00019015,2]
[350237554,1737725456165,-538.25,0.00019015,2]
[350237555,1737725456175,-500.0,0.00019015,2]
[350237556,1737725456184,-560.29,0.00019015,2]
[350237557,1737725456194,-914.81,0.00019015,2]
[350237558,1737725456203,-500.0,0.00019015,2]
[350237559,1737725456212,-500.0,0.00019015,2]
[350237560,1737725456221,-500.0,0.00019015,2]
[350237561,1737725456231,-1103.44,0.00019015,2]
[350237562,1737725456240,-500.0,0.00019015,2]
[350237563,1737725456249,-591.05,0.00019015,2]
[350237564,1737725456259,-742.74,0.00019015,2]
[350237565,1737725456268,-838.54,0.00019015,2]
[350237566,1737725456277,-554.81,0.00019015,2]
[350237567,1737725456287,-830.46,0.00019015,2]
[350237568,1737725456299,-784.44,0.00019015,2]
[350237569,1737725456308,-533.19,0.00019015,2]
[350237570,1737725456319,-500.0,0.00019015,2]
[350237571,1737725456329,-880.01,0.00019015,2]
[350237572,1737725456338,-597.72,0.00019015,2]
[350237573,1737725456348,-500.0,0.00019015,2]
[350237574,1737725456359,-225.1287025,0.00019015,2]
[350237576,1737725456368,-500.0,0.00019015,2]
[350237577,1737725456377,-508.88322705,0.00019015,2]
[350237578,1737725456387,-500.0,0.00019015,2]
[350237579,1737725456396,-554.1753148,0.00019015,2]
[350237580,1737725456406,-500.0,0.00019015,2]
[350237581,1737725456415,-500.0,0.00019015,2]
[350237582,1737725456424,-764.07,0.00019015,2]
[350237583,1737725456433,-500.0,0.00019015,2]
[350237584,1737725456442,-662.34,0.00019015,2]
[350237585,1737725456452,-500.0,0.00019015,2]
[350237586,1737725456463,-458.49074603,0.00019015,2]
[350237587,1737725456474,-837.64,0.00019015,2]
[350237588,1737725456483,-974.46,0.00019015,2]
[350237589,1737725456493,-468.8246174,0.00019015,2]
[350237590,1737725456502,-500.0,0.00019015,2]
[350237591,1737725456511,-500.0,0.00019015,2]
[350237592,1737725456521,-500.0,0.00019015,2]
[350237593,1737725456531,-500.0,0.00019015,2]
[350237594,1737725456540,-500.0,0.00019015,2]
[350237595,1737725456550,-500.0,0.00019015,2]
[350237596,1737725456560,-500.0,0.00019015,2]
[350237597,1737725456569,-1160.48,0.00019015,2]
[350237598,1737725456581,-837.07,0.00019015,2]
[350237599,1737725456590,-500.0,0.00019015,2]
[350237600,1737725456601,-1067.06,0.00019015,2]
[350237601,1737725456611,-554.33,0.00019015,2]
[350237602,1737725456620,-970.25,0.00019015,2]
[350237603,1737725456632,-500.0,0.00019015,2]
[350237604,1737725456641,-500.0,0.00019015,2]
[350237605,1737725456650,-500.0,0.00019015,2]
[350237606,1737725456661,-500.0,0.00019015,2]
[350237607,1737725456670,-500.0,0.00019015,2]
[350237608,1737725456679,-533.91943995,0.00019015,2]
[350237609,1737725456689,-500.0,0.00019015,2]
[350237610,1737725456698,-500.0,0.00019015,2]
[350237611,1737725456707,-566.74,0.00019015,2]
[350237612,1737725456716,-636.72,0.00019015,2]
[350237613,1737725456725,-578.85,0.00019015,2]
[350237614,1737725456734,-683.16,0.00019015,2]
[350237615,1737725456743,-500.0,0.00019015,2]
[350237616,1737725456752,-1465.82,0.00019015,2]
[350237617,1737725456762,-519.53,0.00019015,2]
[350237618,1737725456770,-2066.53,0.00019015,2]
[350237619,1737725456779,-500.0,0.00019015,2]
[350237620,1737725456789,-635.95,0.00019015,2]
[350237621,1737725456798,-500.0,0.00019015,2]
[350237622,1737725456807,-2174.56,0.00019015,2]
[350237623,1737725456816,-4330.61,0.00019015,2]
[350237624,1737725456825,-500.0,0.00019015,2]
[350237625,1737725456836,-500.0,0.00019015,2]
[350237626,1737725456845,-7681.31,0.00019015,2]
[350237627,1737725456855,-500.0,0.00019015,2]
[350237628,1737725456864,-624.52,0.00019015,2]
[350237629,1737725456873,-500.0,0.00019015,2]
[350237630,1737725456883,-500.0,0.00019015,2]
[350237631,1737725456892,-500.0,0.00019015,2]
[350237632,1737725456901,-500.0,0.00019015,2]
[350237633,1737725456910,-911.85,0.00019015,2]
[350237634,1737725456919,-500.0,0.00019015,2]
[350237635,1737725456929,-575.2,0.00019015,2]
[350237636,1737725456939,-500.0,0.00019015,2]
[350237637,1737725456948,-643.57,0.00019015,2]
[350237638,1737725456957,-500.0,0.00019015,2]
[350237639,1737725456966,-886.87,0.00019015,2]
[350237640,1737725456978,-500.0,0.00019015,2]
[350237641,1737725456987,-870.39,0.00019015,2]
[350237642,1737725456996,-862.08,0.00019015,2]
[350237643,1737725457005,-500.0,0.00019015,2]
[350237644,1737725457015,-1316.94,0.00019015,2]
[350237645,1737725457023,-500.0,0.00019015,2]
[350237646,1737725457032,-552.51,0.00019015,2]
[350237647,1737725457041,-1000.0,0.00019015,2]
[350237648,1737725457051,-652.66,0.00019015,2]
[350237649,1737725457060,-545.83,0.00019015,2]
[350237650,1737725457179,-500.0,0.00019015,2]
[350237651,1737725457188,-500.0,0.00019015,2]
[350237652,1737725457198,-2267.91,0.00019015,2]
[350237653,1737725457207,-500.0,0.00019015,2]
[350237654,1737725457216,-500.0,0.00019015,2]
[350237655,1737725457225,-2010.9,0.00019015,2]
[350237656,1737725457235,-500.0,0.00019016,2]
[350237657,1737725457243,-500.0,0.00019016,2]
[350237658,1737725457252,-950.49,0.00019016,2]
[350237659,1737725457262,-702.79,0.00019016,2]
[350237660,1737725457271,-500.0,0.00019016,2]
[350237661,1737725457280,-500.0,0.00019016,2]
[350237662,1737725457289,-657.26,0.00019016,2]
[350237663,1737725457298,-500.0,0.00019016,2]
[350237664,1737725457307,-500.0,0.00019016,2]
[350237665,1737725457316,-500.0,0.00019016,2]
[350237666,1737725457326,-500.0,0.00019016,2]
[350237667,1737725457335,-298.251666,0.00019016,2]
[350237668,1737725457345,-357.512032,0.00019016,2]
[350237669,1737725457354,-357.512032,0.00019016,2]
[350237670,1737725457363,-151.0,0.00019016,2]
[350237671,1737725457372,-300.500202,0.00019016,2]
[350237672,1737725457382,-300.500202,0.00019016,2]
[350237673,1737725457391,-2680.918792,0.00019016,2]
[350237674,1737725457400,-2680.918792,0.00019016,2]
[350237675,1737725457409,-243.840219,0.00019016,2]
[350237676,1737725457418,-243.840219,0.00019016,2]
[350237677,1737725457427,-19586.0,0.00019017,2]
[350237678,1737725457436,-500.0,0.00019017,2]
[350237679,1737725457445,-500.0,0.00019017,2]
[350237680,1737725457454,-500.0,0.00019017,2]
[350237681,1737725457463,-500.0,0.00019017,2]
[350237682,1737725457472,-500.0,0.00019017,2]
[350237683,1737725457481,-500.0,0.00019017,2]
[350237684,1737725457491,-299.42506094,0.00019017,2]
[350237685,1737725457499,-686.81,0.00019027,2]
[350237686,1737725457509,-786.73,0.00019027,2]
[350237687,1737725457519,-630.39,0.00019027,2]
[350237688,1737725457528,-1123.0,0.00019028,2]
[350237689,1737725457537,-150.0,0.00019031,2]
[350237690,1737725457546,-150.0,0.00019055,2]
[350237691,1737725457555,-1123.0,0.00019055,2]
[350237692,1737725457565,-150.0,0.00019061,2]
[350237693,1737725457574,-500.0,0.00019073,2]
[350237694,1737725457583,-150.0,0.00019075,2]
[350237695,1737725457592,-1123.0,0.00019082,2]
[350237696,1737725457601,-181.0,0.00019087,2]
[350237697,1737725457610,-161.42,0.00019087,2]
[350237698,1737725457619,-151.0,0.00019088,2]
[350237699,1737725457628,-151.0,0.00019088,2]
[350237700,1737725457637,-151.0,0.00019088,2]
[350237701,1737725457646,-151.0,0.00019088,2]
[350237702,1737725457655,-407.811,0.00019088,2]
[350237703,1737725457664,-192.135821,0.00019088,2]
[350237704,1737725457673,-192.135821,0.00019088,2]
[350237705,1737725457682,-493.586486,0.00019088,2]
[350237706,1737725457691,-493.586486,0.00019088,2]
[350237707,1737725457700,-151.0,0.00019088,2]
[350237708,1737725457709,-151.0,0.00019088,2]
[350237709,1737725457718,-151.0,0.0001909,2]
[350237710,1737725457727,-151.0,0.0001909,2]
[350237711,1737725457736,-151.0,0.0001909,2]
[350237712,1737725457745,-157.774541,0.0001909,2]
[350237713,1737725457754,-157.774541,0.0001909,2]
[350237714,1737725457763,-152.872776,0.0001909,2]
[350237715,1737725457772,-324.632183,0.0001909,2]
[350237716,1737725457781,-343.16761,0.0001909,2]
[350237717,1737725457791,-343.16761,0.0001909,2]
[350237718,1737725457800,-183.312616,0.00019091,2]
[350237719,1737725457809,-151.0,0.00019091,2]
[350237720,1737725457818,-756.88000554,0.00019096,2]
[350237721,1737725457828,-797.60375871,0.00019096,2]
[350237722,1737725457838,-1000.0,0.000191,2]
[350237723,1737725457847,-1000.0,0.000191,2]
[350237724,1737725457856,-1000.0,0.000191,2]
[350237725,1737725457866,-891.0,0.000191,3]
[350237726,1737725457875,-1000.0,0.000191,3]
[350237727,1737725457884,-1000.0,0.000191,2]
[350237728,1737725457893,-1000.0,0.000191,2]
[350237729,1737725457902,-1000.0,0.000191,2]
[350237730,1737725457911,-1002.0,0.000191,2]
[350237731,1737725457920,-965.0,0.000191,2]
[350237732,1737725457930,-344.77404097,0.00019107,2]
[350237733,1737725457939,-1123.0,0.0001911,2]
[350237734,1737725457948,-150.0,0.0001912,2]
[350237735,1737725457957,-201.0,0.00019128,2]
[350237736,1737725457967,-1123.0,0.00019137,2]
[350237737,1737725457979,-2391.9587632,0.00019138,2]
[350237738,1737725457988,-1601.6013053,0.00019138,2]